[Event "*** Titled Tuesday Blitz"]
[Site "Chess.com"]
[Date "2020.05.26"]
[Round "9"]
[White "TargetA"]
[Black "Man-Chuk"]
[Result "0-1"]
[WhiteElo "2571"]
[BlackElo "2759"]
[TimeControl "180+1"]
[EndTime "11:53:28 PDT"]
[Termination "Man-Chuk won by checkmate"]

1. e4 {[%clk 0:03:00.9]} 1... c6 {[%clk 0:02:58.3]} 2. d4 {[%clk 0:03:00.8]}
2... d5 {[%clk 0:02:59.2]} 3. Nc3 {[%clk 0:03:01.1]} 3... dxe4 {[%clk 0:02:58]}
4. Nxe4 {[%clk 0:03:02]} 4... Bf5 {[%clk 0:02:58.6]} 5. Ng3 {[%clk 0:03:02.2]}
5... Bg6 {[%clk 0:02:59.1]} 6. h4 {[%clk 0:03:03.1]} 6... h6 {[%clk 0:02:58.8]}
7. Nf3 {[%clk 0:03:03.8]} 7... e6 {[%clk 0:02:58.3]} 8. h5 {[%clk 0:03:04.7]}
8... Bh7 {[%clk 0:02:58.4]} 9. Bd3 {[%clk 0:03:04.3]} 9... Bxd3 {[%clk
0:02:58.5]} 10. Qxd3 {[%clk 0:03:05.2]} 10... Nf6 {[%clk 0:02:56]} 11. Bf4
{[%clk 0:03:02.2]} 11... Qa5+ {[%clk 0:02:42.8]} 12. Bd2 {[%clk 0:03:01.8]}
12... Bb4 {[%clk 0:02:39.7]} 13. c3 {[%clk 0:03:01.4]} 13... Be7 {[%clk
0:02:38.2]} 14. Ne5 {[%clk 0:02:53.8]} 14... Nbd7 {[%clk 0:02:21.9]} 15. f4
{[%clk 0:02:50]} 15... Rd8 {[%clk 0:02:21.6]} 16. Qf3 {[%clk 0:02:46]} 16... O-O
{[%clk 0:02:18.9]} 17. O-O {[%clk 0:02:43.3]} 17... c5 {[%clk 0:02:15.9]} 18.
Be3 {[%clk 0:02:39.3]} 18... Nd5 {[%clk 0:02:10.8]} 19. Bf2 {[%clk 0:02:25.6]}
19... cxd4 {[%clk 0:02:03.5]} 20. Bxd4 {[%clk 0:02:26.5]} 20... Bc5 {[%clk
0:01:52.1]} 21. Rfd1 {[%clk 0:02:06.7]} 21... Qb6 {[%clk 0:01:28.7]} 22. Qf2
{[%clk 0:02:00.3]} 22... Bxd4 {[%clk 0:01:24.3]} 23. Rxd4 {[%clk 0:02:01.2]}
23... Nxe5 {[%clk 0:01:09.8]} 24. fxe5 {[%clk 0:02:02.1]} 24... Ne7 {[%clk
0:01:10.1]} 25. Rad1 {[%clk 0:01:36.2]} 25... Rxd4 {[%clk 0:01:00.7]} 26. cxd4
{[%clk 0:01:37.1]} 26... Rd8 {[%clk 0:00:54.9]} 27. Ne4 {[%clk 0:01:34.5]} 27...
Nf5 {[%clk 0:00:55]} 28. Nc5 {[%clk 0:01:19.5]} 28... Qb4 {[%clk 0:00:53.3]} 29.
a3 {[%clk 0:01:11.6]} 29... Qc4 {[%clk 0:00:42.9]} 30. Nxb7 {[%clk 0:01:09.2]}
30... Qb3 {[%clk 0:00:43.1]} 31. Nxd8 {[%clk 0:01:04]} 31... Qxd1+ {[%clk
0:00:43.2]} 32. Kh2 {[%clk 0:01:02.4]} 32... Qxh5+ {[%clk 0:00:43.2]} 33. Kg1
{[%clk 0:01:02.9]} 33... Qd1+ {[%clk 0:00:33.4]} 34. Kh2 {[%clk 0:01:03]} 34...
Qxd4 {[%clk 0:00:30.1]} 35. Qxd4 {[%clk 0:01:02.3]} 35... Nxd4 {[%clk 0:00:31]}
36. Kg3 {[%clk 0:01:01.6]} 36... Kf8 {[%clk 0:00:29.9]} 37. Kf4 {[%clk
0:00:58.4]} 37... Ke7 {[%clk 0:00:26.9]} 38. Nb7 {[%clk 0:00:58.1]} 38... f6
{[%clk 0:00:21.3]} 39. Ke4 {[%clk 0:00:54.5]} 39... Nb3 {[%clk 0:00:18.3]} 40.
Nd6 {[%clk 0:00:45.8]} 40... f5+ {[%clk 0:00:18.5]} 41. Ke3 {[%clk 0:00:43.4]}
41... Kd7 {[%clk 0:00:16.9]} 42. Kd3 {[%clk 0:00:35.8]} 42... Kc6 {[%clk
0:00:16.5]} 43. Kc4 {[%clk 0:00:31.7]} 43... Nd2+ {[%clk 0:00:13.8]} 44. Kd3
{[%clk 0:00:31]} 44... Nf1 {[%clk 0:00:13.3]} 45. Kd4 {[%clk 0:00:28.3]} 45...
f4 {[%clk 0:00:10.3]} 46. b4 {[%clk 0:00:21.2]} 46... Ne3 {[%clk 0:00:09.3]} 47.
g3 {[%clk 0:00:18.2]} 47... Nc2+ {[%clk 0:00:09.3]} 48. Ke4 {[%clk 0:00:14.9]}
48... fxg3 {[%clk 0:00:10.2]} 49. b5+ {[%clk 0:00:15.1]} 49... Kd7 {[%clk
0:00:09.8]} 50. Kf3 {[%clk 0:00:15.2]} 50... Nxa3 {[%clk 0:00:09.2]} 51. Kxg3
{[%clk 0:00:15.7]} 51... Nc2 {[%clk 0:00:08.5]} 52. Kg4 {[%clk 0:00:15.9]} 52...
Nb4 {[%clk 0:00:07.5]} 53. Kh5 {[%clk 0:00:15.6]} 53... Nd3 {[%clk 0:00:07.3]}
54. Nc4 {[%clk 0:00:16.2]} 54... Nf4+ {[%clk 0:00:04.8]} 55. Kg4 {[%clk
0:00:15.8]} 55... g5 {[%clk 0:00:05.7]} 56. Na5 {[%clk 0:00:13.4]} 56... Nd3
{[%clk 0:00:05.2]} 57. Nc6 {[%clk 0:00:12.7]} 57... Kc7 {[%clk 0:00:03.8]} 58.
Nxa7 {[%clk 0:00:10.7]} 58... Nxe5+ {[%clk 0:00:03.3]} 59. Kh5 {[%clk
0:00:11.4]} 59... g4 {[%clk 0:00:02.4]} 60. b6+ {[%clk 0:00:09.2]} 60... Kxb6
{[%clk 0:00:02.5]} 61. Nc8+ {[%clk 0:00:10.1]} 61... Kc5 {[%clk 0:00:03.1]} 62.
Ne7 {[%clk 0:00:10.3]} 62... g3 {[%clk 0:00:03]} 63. Ng8 {[%clk 0:00:09.6]}
63... g2 {[%clk 0:00:03.3]} 64. Nf6 {[%clk 0:00:10.5]} 64... g1=Q {[%clk
0:00:03.7]} 65. Ne4+ {[%clk 0:00:11.4]} 65... Kd4 {[%clk 0:00:04]} 66. Nf6
{[%clk 0:00:11.6]} 66... Qg5# {[%clk 0:00:04]} 0-1

[Event "*** Titled Tuesday Blitz"]
[Site "Chess.com"]
[Date "2020.05.26"]
[Round "9"]
[White "GrafLermontov"]
[Black "BogdanBelyakov89"]
[Result "0-1"]
[WhiteElo "2494"]
[BlackElo "2638"]
[TimeControl "180+1"]
[EndTime "11:53:28 PDT"]
[Termination "BogdanBelyakov89 won by resignation"]

1. d4 {[%clk 0:03:00.9]} 1... Nf6 {[%clk 0:02:59.9]} 2. c4 {[%clk 0:03:00.8]}
2... g6 {[%clk 0:03:00.1]} 3. Nc3 {[%clk 0:03:00.3]} 3... Bg7 {[%clk 0:03:00.6]}
4. e4 {[%clk 0:03:00.5]} 4... O-O {[%clk 0:03:01.5]} 5. Be2 {[%clk 0:03:00.7]}
5... d6 {[%clk 0:03:01.8]} 6. Be3 {[%clk 0:03:00.6]} 6... c5 {[%clk 0:03:01.8]}
7. e5 {[%clk 0:03:00.1]} 7... dxe5 {[%clk 0:02:59.2]} 8. dxe5 {[%clk 0:03:00.9]}
8... Qxd1+ {[%clk 0:02:59.6]} 9. Rxd1 {[%clk 0:03:00.1]} 9... Ng4 {[%clk
0:03:00.5]} 10. Bxc5 {[%clk 0:02:33.8]} 10... Nxe5 {[%clk 0:02:59.7]} 11. f4
{[%clk 0:02:28.7]} 11... Ng4 {[%clk 0:02:43.9]} 12. h3 {[%clk 0:02:26.1]} 12...
Nf6 {[%clk 0:02:42.4]} 13. Bxe7 {[%clk 0:02:20.6]} 13... Re8 {[%clk 0:02:41.7]}
14. Ba3 {[%clk 0:02:15.2]} 14... Nc6 {[%clk 0:02:25.8]} 15. Nf3 {[%clk
0:02:14.9]} 15... Nh5 {[%clk 0:02:24.2]} 16. Kf2 {[%clk 0:01:39.9]} 16... Nxf4
{[%clk 0:02:18.5]} 17. Bf1 {[%clk 0:01:38.7]} 17... Bf5 {[%clk 0:01:35.4]} 18.
g3 {[%clk 0:01:35.1]} 18... Bxc3 {[%clk 0:01:31.4]} 19. bxc3 {[%clk 0:01:21.2]}
19... Ne6 {[%clk 0:01:31]} 20. Rd2 {[%clk 0:01:12.7]} 20... Rad8 {[%clk
0:01:27.6]} 21. Bd6 {[%clk 0:01:09.8]} 21... Be4 {[%clk 0:01:18.3]} 22. Bg2
{[%clk 0:01:05.7]} 22... Bxf3 {[%clk 0:01:08.9]} 23. Bxf3 {[%clk 0:01:06.6]}
23... Ne5 {[%clk 0:01:09.1]} 24. Rhd1 {[%clk 0:00:32.9]} 24... Nxc4 {[%clk
0:01:08.5]} 25. Rd5 {[%clk 0:00:32.6]} 25... Nxd6 {[%clk 0:01:03.2]} 26. Rxd6
{[%clk 0:00:32.7]} 26... Rxd6 {[%clk 0:01:03.8]} 27. Rxd6 {[%clk 0:00:33.6]}
27... Re7 {[%clk 0:01:04.4]} 28. c4 {[%clk 0:00:31.6]} 28... b6 {[%clk
0:01:00.4]} 29. Bd5 {[%clk 0:00:31.7]} 29... Nc5 {[%clk 0:01:00.2]} 30. Rd8+
{[%clk 0:00:30.7]} 30... Kg7 {[%clk 0:01:00]} 31. Kf3 {[%clk 0:00:31.2]} 31...
g5 {[%clk 0:00:57.8]} 32. h4 {[%clk 0:00:28]} 32... gxh4 {[%clk 0:00:50.6]} 33.
gxh4 {[%clk 0:00:28.9]} 33... h6 {[%clk 0:00:49.7]} 34. Kf4 {[%clk 0:00:28]}
34... Ne6+ {[%clk 0:00:45.8]} 35. Bxe6 {[%clk 0:00:26.5]} 35... Rxe6 {[%clk
0:00:46.7]} 36. Rd7 {[%clk 0:00:24.6]} 36... a5 {[%clk 0:00:39.7]} 37. Rd4
{[%clk 0:00:19.2]} 37... Re2 {[%clk 0:00:36.7]} 38. a3 {[%clk 0:00:16.7]} 38...
Ra2 {[%clk 0:00:34.1]} 39. Rd6 {[%clk 0:00:10.3]} 39... Rxa3 {[%clk 0:00:31.8]}
40. Rxb6 {[%clk 0:00:10.9]} 40... Rc3 {[%clk 0:00:27.8]} 41. Rc6 {[%clk
0:00:09.6]} 41... a4 {[%clk 0:00:27.9]} 42. c5 {[%clk 0:00:08.5]} 42... a3
{[%clk 0:00:27.9]} 43. Ra6 {[%clk 0:00:08.4]} 43... f6 {[%clk 0:00:22.9]} 44. h5
{[%clk 0:00:07.6]} 44... Rxc5 {[%clk 0:00:22.3]} 45. Ra7+ {[%clk 0:00:07.9]}
45... Kg8 {[%clk 0:00:20.8]} 46. Rxa3 {[%clk 0:00:08.5]} 46... Rxh5 {[%clk
0:00:20.5]} 47. Ra7 {[%clk 0:00:08.6]} 47... Rg5 {[%clk 0:00:20.3]} 48. Re7
{[%clk 0:00:04.4]} 48... h5 {[%clk 0:00:20.1]} 49. Re3 {[%clk 0:00:04.2]} 49...
Kg7 {[%clk 0:00:20]} 50. Re7+ {[%clk 0:00:04.7]} 50... Kg6 {[%clk 0:00:20.3]}
51. Re8 {[%clk 0:00:05.6]} 51... Rf5+ {[%clk 0:00:20.7]} 52. Kg3 {[%clk
0:00:05.9]} 52... Re5 {[%clk 0:00:21]} 53. Rg8+ {[%clk 0:00:06]} 53... Kf7
{[%clk 0:00:21]} 54. Rh8 {[%clk 0:00:06.3]} 54... Kg7 {[%clk 0:00:21.3]} 55. Rd8
{[%clk 0:00:06.4]} 55... Re4 {[%clk 0:00:21.5]} 56. Rd7+ {[%clk 0:00:06.9]}
56... Kg6 {[%clk 0:00:21.7]} 57. Rd5 {[%clk 0:00:07.2]} 57... Rb4 {[%clk
0:00:21.5]} 58. Rd8 {[%clk 0:00:06.8]} 58... h4+ {[%clk 0:00:20.5]} 59. Kh3
{[%clk 0:00:05.9]} 59... f5 {[%clk 0:00:19.8]} 60. Rg8+ {[%clk 0:00:05.4]} 60...
Kh5 {[%clk 0:00:20.1]} 61. Rh8+ {[%clk 0:00:05.7]} 61... Kg5 {[%clk 0:00:20.6]}
62. Rg8+ {[%clk 0:00:06.3]} 62... Kf4 {[%clk 0:00:21.1]} 63. Kxh4 {[%clk
0:00:06.3]} 63... Rb1 {[%clk 0:00:18.7]} 64. Kh3 {[%clk 0:00:04.6]} 64... Rb2
{[%clk 0:00:17.4]} 65. Rg3 {[%clk 0:00:03.3]} 65... Rf2 {[%clk 0:00:16]} 66. Ra3
{[%clk 0:00:02.2]} 66... Rf3+ {[%clk 0:00:16]} 67. Rxf3+ {[%clk 0:00:02.8]}
67... Kxf3 {[%clk 0:00:16.9]} 68. Kh2 {[%clk 0:00:03.7]} 68... f4 {[%clk
0:00:15.5]} 69. Kg1 {[%clk 0:00:03.7]} 69... Ke2 {[%clk 0:00:15.9]} 0-1

[Event "*** Titled Tuesday Blitz"]
[Site "Chess.com"]
[Date "2020.05.26"]
[Round "9"]
[White "Oleksandr_Bortnyk"]
[Black "Revnov"]
[Result "1-0"]
[WhiteElo "2975"]
[BlackElo "2720"]
[TimeControl "180+1"]
[EndTime "11:53:40 PDT"]
[Termination "Oleksandr_Bortnyk won by resignation"]

1. e4 {[%clk 0:03:00.9]} 1... e5 {[%clk 0:02:58.6]} 2. Bc4 {[%clk 0:02:58.9]}
2... d6 {[%clk 0:02:52.7]} 3. Nc3 {[%clk 0:02:56.2]} 3... Be6 {[%clk 0:02:52.3]}
4. Bxe6 {[%clk 0:02:23.5]} 4... fxe6 {[%clk 0:02:53.2]} 5. d3 {[%clk 0:02:24]}
5... Nc6 {[%clk 0:02:53.1]} 6. f4 {[%clk 0:02:13.4]} 6... Nf6 {[%clk 0:02:50.3]}
7. Nf3 {[%clk 0:02:07.8]} 7... Qd7 {[%clk 0:02:49.4]} 8. fxe5 {[%clk 0:02:04.3]}
8... dxe5 {[%clk 0:02:50.3]} 9. O-O {[%clk 0:02:04.4]} 9... Bc5+ {[%clk
0:02:46.4]} 10. Kh1 {[%clk 0:02:04.9]} 10... O-O {[%clk 0:02:40.2]} 11. Qe1
{[%clk 0:02:01.4]} 11... Bd6 {[%clk 0:02:25.9]} 12. Be3 {[%clk 0:01:54.6]} 12...
h6 {[%clk 0:02:21.1]} 13. Qh4 {[%clk 0:01:32.7]} 13... Rf7 {[%clk 0:02:05.2]}
14. Ne2 {[%clk 0:01:30.3]} 14... Raf8 {[%clk 0:02:00.2]} 15. a3 {[%clk
0:01:22.4]} 15... Ne7 {[%clk 0:01:47.4]} 16. Qg3 {[%clk 0:01:17.1]} 16... Nh5
{[%clk 0:01:37.9]} 17. Qg4 {[%clk 0:01:13.6]} 17... Nf6 {[%clk 0:01:37.9]} 18.
Qg3 {[%clk 0:01:11.1]} 18... Nh5 {[%clk 0:01:37.9]} 19. Qh3 {[%clk 0:01:11.7]}
19... Nf6 {[%clk 0:01:31.6]} 20. g4 {[%clk 0:01:04]} 20... Nh7 {[%clk
0:01:03.8]} 21. g5 {[%clk 0:00:36.7]} 21... hxg5 {[%clk 0:00:59.3]} 22. Nxg5
{[%clk 0:00:37.6]} 22... Nxg5 {[%clk 0:00:54.7]} 23. Bxg5 {[%clk 0:00:37.1]}
23... Rxf1+ {[%clk 0:00:53.2]} 24. Rxf1 {[%clk 0:00:38]} 24... Rxf1+ {[%clk
0:00:53.2]} 25. Qxf1 {[%clk 0:00:38.9]} 25... Ng6 {[%clk 0:00:50.7]} 26. Qh3
{[%clk 0:00:29.8]} 26... a6 {[%clk 0:00:46.1]} 27. Kg2 {[%clk 0:00:25.4]} 27...
Qf7 {[%clk 0:00:45.9]} 28. Qg4 {[%clk 0:00:22]} 28... Bc5 {[%clk 0:00:44]} 29.
Qf3 {[%clk 0:00:14.1]} 29... Qxf3+ {[%clk 0:00:43.9]} 30. Kxf3 {[%clk
0:00:14.4]} 30... Kf7 {[%clk 0:00:44.8]} 31. Kg4 {[%clk 0:00:11.1]} 31... Nf8
{[%clk 0:00:41.8]} 32. h4 {[%clk 0:00:11]} 32... g6 {[%clk 0:00:37.9]} 33. b4
{[%clk 0:00:06.3]} 33... Bd6 {[%clk 0:00:36.6]} 34. Ng1 {[%clk 0:00:05.9]} 34...
c5 {[%clk 0:00:27.5]} 35. Bd2 {[%clk 0:00:03.1]} 35... Nd7 {[%clk 0:00:22.8]}
36. Nf3 {[%clk 0:00:03.2]} 36... Nf6+ {[%clk 0:00:22.6]} 37. Kg3 {[%clk
0:00:03.3]} 37... Nh5+ {[%clk 0:00:22.8]} 38. Kf2 {[%clk 0:00:03.8]} 38... Nf6
{[%clk 0:00:18.9]} 39. Bc3 {[%clk 0:00:03.5]} 39... Nd7 {[%clk 0:00:18.6]} 40.
Ke2 {[%clk 0:00:03.8]} 40... cxb4 {[%clk 0:00:18.2]} 41. axb4 {[%clk 0:00:03.7]}
41... b6 {[%clk 0:00:17.4]} 42. Bd2 {[%clk 0:00:04.1]} 42... Ke7 {[%clk
0:00:17.4]} 43. c4 {[%clk 0:00:04.6]} 43... Nb8 {[%clk 0:00:14.3]} 44. b5 {[%clk
0:00:03.9]} 44... a5 {[%clk 0:00:13.2]} 45. Bc3 {[%clk 0:00:04.3]} 45... Nd7
{[%clk 0:00:13.6]} 46. Kd1 {[%clk 0:00:04.1]} 46... Kf6 {[%clk 0:00:13.7]} 47.
Kc2 {[%clk 0:00:04.1]} 47... Nc5 {[%clk 0:00:13.5]} 48. Bd2 {[%clk 0:00:04.6]}
48... Nd7 {[%clk 0:00:12.8]} 49. Bg5+ {[%clk 0:00:04.4]} 49... Kf7 {[%clk
0:00:13.2]} 50. Be3 {[%clk 0:00:05.3]} 50... Kf6 {[%clk 0:00:13.1]} 51. Kb3
{[%clk 0:00:04.3]} 51... Bc5 {[%clk 0:00:12.9]} 52. Bg5+ {[%clk 0:00:04.4]}
52... Kf7 {[%clk 0:00:13.1]} 53. Bd2 {[%clk 0:00:04]} 53... Bd6 {[%clk
0:00:13.1]} 54. Kc2 {[%clk 0:00:04.2]} 54... Bc5 {[%clk 0:00:12.6]} 55. Bc3
{[%clk 0:00:04.1]} 55... Bd6 {[%clk 0:00:12.7]} 56. Bb2 {[%clk 0:00:04.2]} 56...
Kf6 {[%clk 0:00:13.1]} 57. Bc1 {[%clk 0:00:03.9]} 57... Kf7 {[%clk 0:00:13.4]}
58. Bh6 {[%clk 0:00:03.9]} 58... Kf6 {[%clk 0:00:13.4]} 59. Kb2 {[%clk
0:00:03.4]} 59... Kf7 {[%clk 0:00:13.7]} 60. Bg5 {[%clk 0:00:03.8]} 60... Nc5
{[%clk 0:00:13.2]} 61. Kc3 {[%clk 0:00:03.1]} 61... Na4+ {[%clk 0:00:13.3]} 62.
Kc2 {[%clk 0:00:03.2]} 62... Nc5 {[%clk 0:00:14.2]} 63. Bd8 {[%clk 0:00:03.3]}
63... Nd7 {[%clk 0:00:14.3]} 64. Ng5+ {[%clk 0:00:03.7]} 64... Ke8 {[%clk
0:00:13.6]} 65. Nxe6 {[%clk 0:00:04.6]} 65... Nc5 {[%clk 0:00:12.9]} 66. Nxc5
{[%clk 0:00:03.7]} 66... Bxc5 {[%clk 0:00:13.8]} 67. Bg5 {[%clk 0:00:03.4]}
67... Kd7 {[%clk 0:00:13.7]} 68. Kb3 {[%clk 0:00:02.5]} 68... Ke6 {[%clk
0:00:12.6]} 69. Ka4 {[%clk 0:00:03]} 69... Kd6 {[%clk 0:00:12.3]} 70. Bd8 {[%clk
0:00:03.2]} 70... Kd7 {[%clk 0:00:12.1]} 71. Bg5 {[%clk 0:00:03.7]} 71... Ke6
{[%clk 0:00:12.2]} 72. Kb3 {[%clk 0:00:04.3]} 72... Kd7 {[%clk 0:00:12.3]} 73.
Bd2 {[%clk 0:00:04.4]} 73... Ke6 {[%clk 0:00:11.8]} 74. Be1 {[%clk 0:00:04.9]}
74... Kd6 {[%clk 0:00:11.3]} 75. Bg3 {[%clk 0:00:05.4]} 75... Ke6 {[%clk
0:00:11.3]} 76. Ka4 {[%clk 0:00:03.9]} 76... Kd6 {[%clk 0:00:10.9]} 77. Be1
{[%clk 0:00:04.4]} 77... Ke6 {[%clk 0:00:11.2]} 78. Bd2 {[%clk 0:00:04.7]} 78...
Kd6 {[%clk 0:00:11.4]} 79. Bg5 {[%clk 0:00:04.6]} 79... Ke6 {[%clk 0:00:11.6]}
80. Bh6 {[%clk 0:00:05.1]} 80... Kd6 {[%clk 0:00:11.6]} 81. Bf8+ {[%clk
0:00:05.4]} 1-0

[Event "*** Titled Tuesday Blitz"]
[Site "Chess.com"]
[Date "2020.05.26"]
[Round "9"]
[White "avantage_ru"]
[Black "Andreikka"]
[Result "1/2-1/2"]
[WhiteElo "2730"]
[BlackElo "2919"]
[TimeControl "180+1"]
[EndTime "11:53:48 PDT"]
[Termination "Game drawn - insufficient material"]

1. b3 {[%clk 0:03:00.9]} 1... d5 {[%clk 0:02:57.6]} 2. Bb2 {[%clk 0:03:00.8]}
2... Bg4 {[%clk 0:02:57.1]} 3. h3 {[%clk 0:03:00.1]} 3... Bh5 {[%clk 0:02:56.8]}
4. g4 {[%clk 0:02:57.7]} 4... Bg6 {[%clk 0:02:56.9]} 5. Bg2 {[%clk 0:02:57.7]}
5... e6 {[%clk 0:02:56.3]} 6. Nf3 {[%clk 0:02:56.8]} 6... Nd7 {[%clk 0:02:55.9]}
7. O-O {[%clk 0:02:55.8]} 7... h5 {[%clk 0:02:46.6]} 8. g5 {[%clk 0:02:54.9]}
8... Ne7 {[%clk 0:02:44.4]} 9. d3 {[%clk 0:02:50]} 9... Nf5 {[%clk 0:02:42.8]}
10. Nbd2 {[%clk 0:02:47.5]} 10... Nd6 {[%clk 0:02:21.2]} 11. c4 {[%clk
0:02:44.8]} 11... c6 {[%clk 0:02:19.4]} 12. h4 {[%clk 0:02:38.9]} 12... f6
{[%clk 0:02:06.9]} 13. Re1 {[%clk 0:02:17.6]} 13... e5 {[%clk 0:02:05.3]} 14.
cxd5 {[%clk 0:02:14.2]} 14... cxd5 {[%clk 0:02:04.6]} 15. b4 {[%clk 0:02:12]}
15... Be7 {[%clk 0:02:01.7]} 16. Qb3 {[%clk 0:02:00.8]} 16... Bf7 {[%clk
0:01:49.3]} 17. Bh3 {[%clk 0:01:57.2]} 17... Nb6 {[%clk 0:01:30.7]} 18. a4
{[%clk 0:01:50.7]} 18... d4 {[%clk 0:01:30.5]} 19. Be6 {[%clk 0:01:50.1]} 19...
Bxe6 {[%clk 0:01:23.9]} 20. Qxe6 {[%clk 0:01:50]} 20... Qd7 {[%clk 0:01:24.5]}
21. Qxd7+ {[%clk 0:01:48.8]} 21... Kxd7 {[%clk 0:01:25.4]} 22. e3 {[%clk
0:01:40.9]} 22... dxe3 {[%clk 0:01:16.1]} 23. fxe3 {[%clk 0:01:40.3]} 23... Nd5
{[%clk 0:01:16.7]} 24. b5 {[%clk 0:01:35.4]} 24... Nb4 {[%clk 0:01:15.9]} 25.
Red1 {[%clk 0:01:10.9]} 25... Nc2 {[%clk 0:00:54.4]} 26. Rac1 {[%clk 0:01:10.6]}
26... Nxe3 {[%clk 0:00:55]} 27. Re1 {[%clk 0:01:10.6]} 27... Nef5 {[%clk
0:00:48.2]} 28. d4 {[%clk 0:01:03.8]} 28... exd4 {[%clk 0:00:38.8]} 29. Nxd4
{[%clk 0:01:01.8]} 29... Nxd4 {[%clk 0:00:39.2]} 30. Bxd4 {[%clk 0:01:00.7]}
30... fxg5 {[%clk 0:00:40.1]} 31. Nf3 {[%clk 0:00:51.8]} 31... Rhc8 {[%clk
0:00:30.9]} 32. Ne5+ {[%clk 0:00:43]} 32... Kd8 {[%clk 0:00:28.9]} 33. Rcd1
{[%clk 0:00:42.9]} 33... gxh4 {[%clk 0:00:12.3]} 34. Ng6 {[%clk 0:00:33.8]}
34... Rc7 {[%clk 0:00:03]} 35. Be5 {[%clk 0:00:31.9]} 35... Rd7 {[%clk
0:00:02.5]} 36. Nxe7 {[%clk 0:00:31.2]} 36... Kxe7 {[%clk 0:00:03.4]} 37. Bxd6+
{[%clk 0:00:30.8]} 37... Kf7 {[%clk 0:00:04.3]} 38. Rd2 {[%clk 0:00:22.6]} 38...
Rad8 {[%clk 0:00:04.5]} 39. Rf2+ {[%clk 0:00:22.7]} 39... Kg8 {[%clk 0:00:03.9]}
40. Bf4 {[%clk 0:00:20.5]} 40... Rd4 {[%clk 0:00:04.1]} 41. Bg5 {[%clk
0:00:19.6]} 41... R8d5 {[%clk 0:00:03.9]} 42. Rf4 {[%clk 0:00:17.9]} 42... Rxf4
{[%clk 0:00:03.4]} 43. Bxf4 {[%clk 0:00:18.8]} 43... Rd4 {[%clk 0:00:04.3]} 44.
Bb8 {[%clk 0:00:18.6]} 44... Rxa4 {[%clk 0:00:04.1]} 45. Re7 {[%clk 0:00:19.2]}
45... b6 {[%clk 0:00:03.7]} 46. Be5 {[%clk 0:00:18.5]} 46... Rb4 {[%clk
0:00:03.1]} 47. Rxg7+ {[%clk 0:00:17.7]} 47... Kf8 {[%clk 0:00:03.5]} 48. Rxa7
{[%clk 0:00:17.6]} 48... Rxb5 {[%clk 0:00:03.6]} 49. Bd6+ {[%clk 0:00:17.8]}
49... Kg8 {[%clk 0:00:03.8]} 50. Kg2 {[%clk 0:00:18.3]} 50... Rb3 {[%clk
0:00:04]} 51. Be7 {[%clk 0:00:17.3]} 51... h3+ {[%clk 0:00:04.9]} 52. Kh2 {[%clk
0:00:16.8]} 52... Kf7 {[%clk 0:00:05.6]} 53. Bh4+ {[%clk 0:00:15.4]} 53... Ke6
{[%clk 0:00:06.1]} 54. Bg3 {[%clk 0:00:15.7]} 54... b5 {[%clk 0:00:06.5]} 55.
Kxh3 {[%clk 0:00:15.9]} 55... b4 {[%clk 0:00:07.1]} 56. Kh4 {[%clk 0:00:16.2]}
56... Rd3 {[%clk 0:00:07.2]} 57. Rb7 {[%clk 0:00:15.9]} 57... b3 {[%clk
0:00:07.7]} 58. Bf4 {[%clk 0:00:15.3]} 58... Kf5 {[%clk 0:00:06.9]} 59. Rb4
{[%clk 0:00:14.6]} 59... Rc3 {[%clk 0:00:04.9]} 60. Bg5 {[%clk 0:00:14.3]} 60...
Rd3 {[%clk 0:00:04.5]} 61. Rb5+ {[%clk 0:00:14.5]} 61... Ke4 {[%clk 0:00:04.2]}
62. Kxh5 {[%clk 0:00:14.9]} 62... Kd4 {[%clk 0:00:04.7]} 63. Kg4 {[%clk
0:00:14.6]} 63... Kc3 {[%clk 0:00:04.6]} 64. Bf6+ {[%clk 0:00:13.9]} 64... Kc2
{[%clk 0:00:05]} 65. Kf4 {[%clk 0:00:13.8]} 65... Rd1 {[%clk 0:00:04.9]} 66. Be5
{[%clk 0:00:11.9]} 66... Rf1+ {[%clk 0:00:04.9]} 67. Ke4 {[%clk 0:00:12]} 67...
Re1+ {[%clk 0:00:05.5]} 68. Kd5 {[%clk 0:00:12.3]} 68... Rd1+ {[%clk 0:00:04.5]}
69. Bd4 {[%clk 0:00:12.5]} 69... Rd3 {[%clk 0:00:03.7]} 70. Rb8 {[%clk
0:00:12.7]} 70... Rh3 {[%clk 0:00:04]} 71. Kc4 {[%clk 0:00:12.3]} 71... Rh4
{[%clk 0:00:04.6]} 72. Rg8 {[%clk 0:00:10.1]} 72... Rxd4+ {[%clk 0:00:03.5]} 73.
Kxd4 {[%clk 0:00:09.2]} 73... b2 {[%clk 0:00:04.2]} 74. Rc8+ {[%clk 0:00:09.3]}
74... Kd2 {[%clk 0:00:04.1]} 75. Rb8 {[%clk 0:00:09.4]} 75... Kc2 {[%clk
0:00:04.5]} 76. Rxb2+ {[%clk 0:00:10]} 76... Kxb2 {[%clk 0:00:04.6]} 1/2-1/2